bitfinex/quotes_BTCUSD_20260315
["timestamp","ask_amount","ask_price","bid_price","bid_amount"]
[1773569421563,0.1017805,71760.0,71746.0,0.06969025]
[1773569421564,0.1017805,71760.0,71739.0,0.07109667]
[1773569421566,0.0321038,71759.0,71739.0,0.07109667]
[1773569422696,0.032232,71759.0,71739.0,0.07109667]
[1773569423298,0.06967864,71758.0,71739.0,0.07109667]
[1773569423636,0.06967864,71758.0,71739.0,0.0014]
[1773569423637,0.03425436,71757.0,71739.0,0.0014]
[1773569424521,0.03425436,71757.0,71735.0,0.06990051]
[1773569424522,0.03425436,71757.0,71740.0,0.0014]
[1773569425451,0.03425436,71757.0,71742.0,0.0002]
[1773569425736,0.03425436,71755.0,71742.0,0.0002]
[1773569426867,0.03565436,71754.0,71742.0,0.0002]
[1773569428230,0.06968349,71753.0,71742.0,0.0002]
[1773569430435,0.10393785,71753.0,71742.0,0.0002]
[1773569438325,0.06968349,71753.0,71742.0,0.0002]
[1773569438524,0.03425436,71752.0,71742.0,0.0002]
[1773569439908,0.06968543,71751.0,71742.0,0.0002]
[1773569448089,0.03425436,71750.0,71738.0,0.0014]
[1773569448289,0.03425436,71750.0,71736.0,0.0014]
[1773569451121,0.06968738,71749.0,71736.0,0.0014]
[1773569451320,0.06968738,71749.0,71734.0,0.0002]
[1773569451504,0.06968738,71749.0,71736.0,0.0014]
[1773569451819,0.06968738,71749.0,71734.0,0.0002]
[1773569452030,0.06968738,71749.0,71735.0,0.0014]
[1773569452787,0.06968738,71749.0,71734.0,0.0002]
[1773569452987,0.06968738,71749.0,71735.0,0.0014]
[1773569453835,0.06968738,71749.0,71734.0,0.06990189]
[1773569454015,0.06968738,71749.0,71735.0,0.0014]
[1773569455413,0.06968738,71749.0,71736.0,0.0014]
[1773569455798,0.06968738,71749.0,71734.0,0.06990189]
[1773569456002,0.06968738,71749.0,71735.0,0.0014]
[1773569456440,0.06968738,71749.0,71736.0,0.0014]
[1773569456819,0.06968738,71749.0,71734.0,0.06990189]
[1773569457020,0.06968738,71749.0,71735.0,0.0014]
[1773569457451,0.06968738,71749.0,71736.0,0.0014]
[1773569457818,0.06968738,71749.0,71734.0,0.06990189]
[1773569458019,0.06968738,71749.0,71735.0,0.0014]
[1773569458918,0.06968738,71749.0,71736.0,0.0014]
[1773569459325,0.06968738,71749.0,71734.0,0.0002]
[1773569459660,0.06968738,71749.0,71735.0,0.0014]
[1773569459860,0.06968738,71749.0,71734.0,0.0002]
[1773569460178,0.06968738,71749.0,71735.0,0.0014]
[1773569460380,0.06968738,71749.0,71734.0,0.0002]
[1773569460583,0.06968738,71749.0,71735.0,0.0014]
[1773569460864,0.06968738,71749.0,71734.0,0.0002]
[1773569461021,0.06968738,71749.0,71735.0,0.0014]
[1773569461639,0.0322999,71748.0,71727.0,0.06990821]
[1773569461822,0.0336999,71748.0,71729.0,0.06990642]
[1773569462016,0.0336999,71748.0,71730.0,0.0014]
[1773569462223,0.0336999,71748.0,71731.0,0.0014]
[1773569462649,0.0336999,71748.0,71732.0,0.0014]
[1773569463024,0.0336999,71748.0,71729.0,0.06990648]
[1773569463367,0.0336999,71748.0,71730.0,0.0014]
[1773569463568,0.06968932,71747.0,71729.0,0.03256135]
[1773569463736,0.06968932,71747.0,71730.0,0.0014]
[1773569464124,0.06968932,71747.0,71731.0,0.0014]
[1773569464843,0.06968932,71747.0,71729.0,0.03256135]
[1773569465266,0.06968932,71747.0,71730.0,0.0014]
[1773569467059,0.06968932,71747.0,71730.0,0.03376135]
[1773569467259,0.06968932,71747.0,71730.0,0.0014]
[1773569467458,0.0322999,71746.0,71730.0,0.0014]
[1773569468388,0.06969126,71745.0,71730.0,0.0014]
[1773569468586,0.06969126,71745.0,71729.0,0.0002]
[1773569468768,0.06969126,71745.0,71730.0,0.0014]
[1773569469343,0.10199116,71745.0,71731.0,0.0014]
[1773569470169,0.10199116,71745.0,71729.0,0.0002]
[1773569470375,0.10199116,71745.0,71730.0,0.0014]
[1773569471346,0.0322999,71744.0,71729.0,0.0002]
[1773569471543,0.0322999,71744.0,71730.0,0.0014]
[1773569472655,0.06969321,71743.0,71730.0,0.0014]
[1773569472896,0.06965081,71743.0,71730.0,0.0014]
[1773569476450,0.0322999,71742.0,71729.0,1e-08]
[1773569477015,0.06965081,71743.0,71729.0,1e-08]
[1773569477707,0.06965081,71743.0,71729.0,0.00035762]
[1773569478056,0.06965081,71743.0,71729.0,0.00035761]
[1773569478259,0.06965081,71743.0,71729.0,0.00175761]
[1773569478559,0.06965081,71743.0,71729.0,1e-08]
[1773569478742,0.0336999,71742.0,71729.0,1e-08]
[1773569479123,0.0336999,71742.0,71725.0,0.00140001]
[1773569479341,0.0336999,71742.0,71725.0,0.00150729]
[1773569480020,0.0336999,71742.0,71725.0,0.03386864]
[1773569480979,0.06969515,71741.0,71725.0,0.03386864]
[1773569481920,0.06969515,71741.0,71725.0,0.00150729]
[1773569481921,0.10213089,71741.0,71725.0,0.00150729]
[1773569482568,0.0014,71740.0,71725.0,0.00150729]
[1773569483387,0.06969709,71739.0,71725.0,0.00150729]
[1773569487895,0.06969709,71739.0,71725.0,0.03598211]
[1773569488691,0.05133439,71738.0,71725.0,0.00150729]
[1773569491683,0.05893251,71736.0,71725.0,0.00150729]
[1773569492212,0.05893251,71736.0,71722.0,0.0014]
[1773569492213,0.05906071,71736.0,71722.0,0.0014]
[1773569494437,0.05892829,71734.0,71722.0,0.0014]
[1773569494962,0.05892829,71734.0,71722.0,0.0016]
[1773569496427,0.05892295,71732.0,71722.0,0.0016]
[1773569496774,0.05892295,71732.0,71722.0,0.0002]
[1773569497583,0.05892295,71732.0,71721.0,0.0014]
[1773569498321,0.06970486,71731.0,71721.0,0.0014]
[1773569498502,0.12862452,71731.0,71721.0,0.0014]
[1773569498707,0.12862452,71731.0,71714.0,0.06992088]
[1773569498890,0.12862452,71731.0,71715.0,0.0014]
[1773569499106,0.12862452,71731.0,71716.0,0.0014]
[1773569499513,0.12862452,71731.0,71714.0,0.06992088]
[1773569499699,0.12862452,71731.0,71715.0,0.0014]
[1773569499896,0.12862452,71731.0,71714.0,0.0002]
[1773569500119,0.05891769,71730.0,71715.0,0.0014]
[1773569500622,0.06970681,71729.0,71715.0,0.0014]
[1773569501845,0.06970681,71729.0,71715.0,0.0016]
[1773569502363,0.06970681,71729.0,71715.0,0.07132032]
[1773569503344,0.06970681,71729.0,71715.0,0.0016]
[1773569503518,0.06970681,71729.0,71715.0,0.07132034]
[1773569503841,0.06970681,71729.0,71716.0,0.0014]
[1773569505145,0.05894099,71728.0,71716.0,0.0014]
[1773569505465,0.05894099,71728.0,71716.0,0.07111847]
[1773569505466,0.02970875,71728.0,71716.0,0.07111847]
[1773569505664,0.06982875,71736.0,71716.0,0.07111847]
[1773569505665,0.06970103,71735.0,71716.0,0.07111847]
[1773569507278,0.07004154,71743.0,71716.0,0.07111847]
[1773569507453,0.07039897,71743.0,71716.0,0.07124667]
[1773569507653,0.06685784,71743.0,71716.0,0.07137487]
[1773569507875,0.00022001,71753.0,71717.0,0.289289]
[1773569508081,0.00022001,71753.0,71719.0,0.905025]
[1773569508271,0.00022001,71753.0,71722.0,1.205983]
[1773569508272,0.06968456,71752.0,71722.0,1.205983]
[1773569508440,0.06968456,71752.0,71723.0,0.0014]
[1773569508644,0.06968456,71752.0,71724.0,1.249945]
[1773569508838,0.06990406,71753.0,71724.0,1.249945]
[1773569509042,0.00022001,71744.0,71724.0,1.249945]
[1773569509764,0.00022001,71753.0,71726.0,1.305251]
[1773569510487,0.00022001,71753.0,71727.0,1.231189]
[1773569511035,0.00022001,71753.0,71727.0,0.979376]
[1773569511591,0.06989581,71761.0,71728.0,0.06970778]
[1773569511828,0.0697269,71760.0,71729.0,1.972666]
[1773569512280,0.0697269,71760.0,71731.0,2.090673]
[1773569512785,0.0697269,71760.0,71731.0,2.078658]
[1773569513011,0.0697269,71760.0,71731.0,2.065699]
[1773569513696,0.0697269,71760.0,71733.0,2.073949]
[1773569515336,0.06994691,71760.0,71734.0,2.046514]
[1773569515749,0.06994691,71760.0,71736.0,1.552228]
[1773569515952,0.06994691,71760.0,71737.0,0.0014]
[1773569517654,0.06994691,71760.0,71738.0,0.06969806]
[1773569519138,0.00022001,71761.0,71739.0,1.499984]
[1773569519279,0.069673,71764.0,71739.0,1.453025]
[1773569519475,0.069673,71764.0,71739.0,1.359406]
[1773569519877,0.00044621,71765.0,71741.0,1.38789]
[1773569520223,0.00044621,71765.0,71741.0,1.27089]
[1773569521144,0.00044621,71765.0,71741.0,1.27189]
[1773569521322,0.00044621,71765.0,71742.0,2.279982]
[1773569521521,0.00044621,71765.0,71744.0,1.590032]
[1773569521709,0.00044621,71765.0,71745.0,0.14196]
[1773569521907,0.06277645,71767.0,71746.0,0.06969029]
[1773569522728,0.00022001,71763.0,71746.0,0.06969029]
[1773569524627,0.00026483,71763.0,71746.0,0.06969029]
[1773569526369,0.06277645,71767.0,71746.0,0.06969029]
[1773569526570,0.06277645,71767.0,71746.0,0.06973511]
[1773569527995,0.00027001,71772.0,71746.0,0.06973511]
[1773569527996,0.06965049,71787.0,71751.0,1.825651]
[1773569528196,0.1293447,71787.0,71751.0,1.825651]
[1773569528333,0.05969421,71786.0,71753.0,1.872674]
[1773569528535,0.05969421,71786.0,71753.0,1.753286]
[1773569528741,0.05969421,71786.0,71754.0,0.442342]
[1773569528941,0.05969421,71786.0,71753.0,0.483916]
[1773569529242,0.05969421,71786.0,71753.0,0.460226]
[1773569529859,0.05969421,71787.0,71755.0,1.174215]
[1773569530060,0.05969421,71787.0,71752.0,0.07108446]
[1773569530061,0.000204,71788.0,71753.0,2.417122]
[1773569530261,0.000204,71788.0,71753.0,2.377701]
[1773569530502,0.00022001,71782.0,71755.0,2.461112]
[1773569531061,0.06964483,71793.0,71755.0,2.461112]
[1773569531063,0.06963982,71798.0,71761.0,1.276138]
[1773569531261,0.05969421,71797.0,71763.0,0.149975]
[1773569531762,0.05969421,71797.0,71764.0,0.0014]
[1773569531953,0.05969421,71797.0,71765.0,0.211363]
[1773569532147,0.05969421,71797.0,71765.0,0.110959]
[1773569532463,0.05969421,71797.0,71766.0,0.06967087]
[1773569532464,0.06964176,71796.0,71766.0,0.06967087]
[1773569532798,0.05969421,71795.0,71766.0,0.06967087]
[1773569535293,0.0696437,71794.0,71766.0,0.06967087]
[1773569535518,0.05969421,71793.0,71766.0,0.06967087]
[1773569538124,0.06964564,71792.0,71766.0,0.06967087]
[1773569538293,0.04606077,71791.0,71766.0,0.06967087]
[1773569543052,0.02867981,71788.0,71766.0,0.06967087]
[1773569543285,0.04573327,71787.0,71766.0,0.06967087]
[1773569543853,0.04573327,71787.0,71767.0,0.0014]
[1773569544057,0.04573327,71787.0,71768.0,0.0014]
[1773569545315,0.04578285,71785.0,71769.0,0.06966796]
[1773569545793,0.04578285,71785.0,71770.0,0.0014]
[1773569545992,0.04578285,71785.0,71769.0,0.06966796]
[1773569546190,0.04578285,71785.0,71770.0,0.0014]
[1773569546747,0.04578285,71785.0,71771.0,0.0014]
[1773569547510,0.0696534,71784.0,71769.0,0.06966796]
[1773569547711,0.0696534,71784.0,71770.0,0.0014]
[1773569548112,0.0696534,71784.0,71771.0,0.0014]
[1773569548522,0.0696534,71784.0,71769.0,0.06966796]
[1773569548714,0.0696534,71784.0,71770.0,0.0014]
[1773569549147,0.0696534,71784.0,71771.0,0.0014]
[1773569550085,0.04578285,71785.0,71772.0,0.06966505]
[1773569550376,0.04578285,71785.0,71773.0,0.0014]
[1773569550583,0.04578285,71785.0,71774.0,0.0014]
[1773569551960,0.04578285,71785.0,71775.0,0.0014]
[1773569552156,0.04578285,71785.0,71768.0,0.06966893]
[1773569552157,0.03255599,71783.0,71768.0,0.06966893]
[1773569552361,0.03255599,71783.0,71769.0,0.0014]
[1773569552780,0.03255599,71783.0,71770.0,0.0014]
[1773569553177,0.03255599,71783.0,71768.0,0.06966893]
[1773569553583,0.03255599,71783.0,71769.0,0.0014]
[1773569553784,0.03255599,71783.0,71770.0,0.0014]
[1773569554328,0.10221133,71782.0,71771.0,0.07106602]
[1773569554683,0.10221133,71782.0,71771.0,0.06966602]
[1773569554903,0.10221133,71782.0,71772.0,0.0014]
[1773569555069,0.10221133,71782.0,71771.0,0.06966602]
[1773569555435,0.10221133,71782.0,71772.0,0.0014]
[1773569555637,0.10221133,71782.0,71771.0,0.06966602]
[1773569555845,0.10221133,71782.0,71773.0,0.0014]
[1773569556163,0.10221133,71782.0,71770.0,0.06966694]
[1773569556296,0.03255599,71784.0,71774.0,0.0014]
[1773569556628,0.03255599,71784.0,71775.0,0.0014]
[1773569556776,0.03255599,71784.0,71776.0,0.0014]
[1773569557181,0.03255599,71784.0,71767.0,0.0696699]
[1773569557381,0.03255599,71784.0,71768.0,0.0014]
[1773569557801,0.03255599,71784.0,71769.0,0.0014]
[1773569558229,0.06965437,71783.0,71767.0,0.0696699]
[1773569558395,0.06965437,71783.0,71770.0,0.0014]
[1773569558815,0.06965437,71783.0,71767.0,0.0696699]
[1773569558816,0.06965437,71783.0,71771.0,0.0014]
[1773569559220,0.06965437,71783.0,71767.0,0.0696699]
[1773569559437,0.06965437,71783.0,71768.0,0.0014]
[1773569561137,0.06965437,71785.0,71769.0,0.0014]
[1773569561138,0.10221036,71785.0,71769.0,0.0014]
[1773569561495,0.03255599,71784.0,71769.0,0.0014]
[1773569562855,0.06965437,71786.0,71769.0,0.03652709]
[1773569567119,0.06965437,71786.0,71770.0,0.06966699]
[1773569567521,0.06965437,71786.0,71771.0,0.0014]
[1773569567748,0.06987438,71786.0,71771.0,0.0014]
[1773569568274,0.03255599,71785.0,71771.0,0.0014]
[1773569569471,0.0696534,71784.0,71768.0,0.06966807]
[1773569569677,0.03255599,71783.0,71769.0,0.0014]
[1773569569878,0.03255599,71783.0,71770.0,0.0014]
[1773569570065,0.03255599,71783.0,71771.0,0.0014]
[1773569570292,0.03255599,71783.0,71772.0,0.0014]
[1773569570426,0.03255599,71783.0,71762.0,0.06967475]
[1773569570427,0.03255599,71783.0,71773.0,0.0014]
[1773569570625,0.03255599,71783.0,71774.0,0.0014]
[1773569570857,0.03255599,71783.0,71762.0,0.06967475]
[1773569571162,0.03255599,71783.0,71763.0,0.0014]
[1773569571362,0.03255599,71783.0,71762.0,0.06967475]
[1773569571545,0.03255599,71783.0,71764.0,0.0014]
[1773569571967,0.03255599,71783.0,71765.0,0.0014]
[1773569571968,0.06965534,71782.0,71765.0,0.0014]
[1773569572124,0.05471214,71782.0,71766.0,0.03573805]
[1773569572325,0.03976894,71782.0,71766.0,0.03573805]
[1773569575721,0.06965534,71784.0,71768.0,0.03573805]
[1773569576585,0.00022001,71783.0,71768.0,0.03573805]
[1773569577635,0.06965534,71782.0,71769.0,0.06966796]
[1773569577864,0.06965534,71782.0,71770.0,0.03573805]
[1773569580007,0.06965534,71782.0,71771.0,0.06966602]
[1773569580300,0.06965534,71782.0,71772.0,0.0014]
[1773569581376,0.10538045,71782.0,71772.0,0.0014]
[1773569581578,0.03572511,71781.0,71773.0,0.0014]
[1773569582127,0.06965728,71780.0,71773.0,0.0014]
[1773569584003,0.06965728,71780.0,71773.0,0.00125077]
[1773569584925,0.10538239,71780.0,71773.0,0.00125077]
[1773569586390,0.10638239,71780.0,71773.0,0.00125077]
[1773569586592,0.06965728,71780.0,71773.0,0.00125077]
[1773569586937,0.06965728,71780.0,71774.0,0.0014]
[1773569588092,0.07065728,71780.0,71774.0,0.0014]
[1773569590073,0.06965728,71781.0,71774.0,0.0014]
[1773569591208,0.06965534,71782.0,71774.0,0.0014]
[1773569591487,0.06965534,71782.0,71774.0,0.03713805]
[1773569592116,0.06965534,71782.0,71774.0,0.0014]
[1773569595851,0.06965534,71782.0,71775.0,0.03573805]
[1773569598758,0.05574534,71782.0,71775.0,0.03558626]
[1773569599175,0.05574534,71782.0,71774.0,0.0014]
[1773569601712,0.05574534,71782.0,71775.0,0.0014]
[1773569602980,0.05574534,71782.0,71775.0,0.0016]
[1773569603180,0.05574534,71782.0,71776.0,0.03463639]
[1773569603407,0.05596535,71782.0,71776.0,0.03463639]
[1773569604274,0.05596535,71782.0,71775.0,0.0016]
[1773569604909,0.05696535,71782.0,71775.0,0.0016]
[1773569605225,0.05596535,71782.0,71775.0,0.0016]
[1773569606689,0.05596535,71782.0,71776.0,0.0014]
[1773569607003,0.05596535,71782.0,71771.0,0.06825962]
[1773569607204,0.05596535,71782.0,71772.0,0.0014]
[1773569608070,0.05696535,71782.0,71772.0,0.0014]
[1773569608396,0.05596535,71782.0,71772.0,0.0014]
[1773569610640,0.05596535,71782.0,71770.0,0.0002]
[1773569610825,0.05596535,71782.0,71767.0,0.0002]
[1773569610826,0.05596535,71782.0,71771.0,0.0014]
[1773569611007,0.05596535,71782.0,71767.0,0.0002]
[1773569611323,0.05596535,71782.0,71771.0,0.0014]
[1773569611481,0.05631383,71782.0,71767.0,0.0002]
[1773569611679,0.05596535,71782.0,71768.0,0.0014]
[1773569611986,0.05596535,71782.0,71770.0,0.03605571]
[1773569612405,0.05596535,71782.0,71771.0,0.0014]
[1773569614766,0.05696535,71782.0,71771.0,0.0014]
[1773569618683,0.05696535,71782.0,71771.0,0.0016]
[1773569621791,0.05696535,71782.0,71772.0,0.0014]
[1773569623092,0.05596535,71782.0,71765.0,0.06966996]
[1773569623292,0.05596535,71782.0,71766.0,0.0014]
[1773569623679,0.05596535,71782.0,71767.0,0.0014]
[1773569623918,0.05696535,71782.0,71767.0,0.0014]
[1773569624122,0.05596535,71782.0,71767.0,0.0014]
[1773569625338,0.05596535,71782.0,71767.0,0.03788536]
[1773569625720,0.05596535,71782.0,71768.0,0.0014]
[1773569625963,0.05596535,71782.0,71768.0,0.03788536]
[1773569626159,0.05596535,71782.0,71768.0,0.03648536]
[1773569626490,0.05596535,71782.0,71769.0,0.0014]
[1773569627654,0.05596535,71782.0,71768.0,0.03648536]
[1773569627855,0.05596535,71782.0,71770.0,0.0014]
[1773569628167,0.05596535,71782.0,71768.0,0.03648536]
[1773569628366,0.05596535,71782.0,71771.0,0.0014]
[1773569628657,0.05596535,71782.0,71768.0,0.03648536]
[1773569628815,0.05596535,71782.0,71772.0,0.0014]
[1773569629520,0.05596535,71782.0,71768.0,0.06966796]
[1773569629723,0.04144382,71782.0,71771.0,0.03630383]
[1773569629907,0.04244382,71782.0,71771.0,0.03630383]
[1773569630110,0.04144382,71782.0,71771.0,0.03630383]
[1773569630347,0.04244382,71782.0,71771.0,0.03630383]
[1773569630552,0.04344382,71782.0,71771.0,0.03630383]
[1773569630864,0.04244382,71782.0,71771.0,0.03630383]
[1773569631094,0.04344382,71782.0,71771.0,0.03630383]
[1773569631574,0.04244382,71782.0,71771.0,0.03630383]
[1773569631920,0.04244382,71782.0,71769.0,0.0014]
[1773569632871,0.04144382,71782.0,71769.0,0.0014]
[1773569637299,0.04144382,71782.0,71769.0,0.0016]
[1773569640630,0.06987485,71783.0,71769.0,0.0016]
[1773569640631,3.6e-07,71783.0,71770.0,0.03300215]
[1773569640786,0.06965556,71783.0,71770.0,0.03300215]
[1773569642830,0.06965556,71783.0,71772.0,0.03300215]
[1773569643949,3.6e-07,71783.0,71772.0,0.03300215]
[1773569644248,0.05522285,71785.0,71772.0,0.03300215]
[1773569644426,0.05500284,71785.0,71772.0,0.03300215]
[1773569645108,0.06987194,71786.0,71774.0,0.03300215]
[1773569645748,0.00022001,71783.0,71775.0,0.0014]
[1773569646951,0.00022001,71786.0,71776.0,0.03300215]
[1773569647380,0.00022001,71791.0,71777.0,0.06966019]
[1773569647381,0.06986769,71790.0,71777.0,0.06966019]
[1773569647527,0.06991745,71790.0,71778.0,0.03300215]
[1773569648826,0.00026977,71790.0,71778.0,0.03300215]
[1773569649887,0.00026977,71790.0,71779.0,0.06965825]
[1773569650393,0.06991754,71790.0,71779.0,0.06965825]
[1773569650754,0.06991735,71790.0,71779.0,0.06965825]
[1773569650964,0.00026977,71790.0,71780.0,0.03300215]
[1773569651163,0.06991739,71790.0,71781.0,0.03440215]
[1773569651545,0.00026977,71790.0,71781.0,0.03440215]
[1773569652264,0.00026977,71790.0,71782.0,0.06965534]
[1773569652748,0.00022001,71793.0,71782.0,0.06965534]
[1773569652934,0.00022001,71795.0,71783.0,0.03300215]
[1773569654194,0.00022001,71795.0,71784.0,0.0696534]
[1773569654465,0.00022001,71795.0,71785.0,0.03300215]
[1773569654843,0.06486202,71796.0,71785.0,0.03300215]
[1773569655053,0.06963999,71798.0,71785.0,0.03300215]
[1773569656151,0.06963999,71798.0,71785.0,0.03265306]
[1773569656353,0.06963784,71801.0,71786.0,0.06965146]
[1773569656569,0.06963784,71801.0,71787.0,0.0014]
[1773569658377,0.06963784,71801.0,71788.0,0.06964952]
[1773569661507,0.06963784,71801.0,71788.0,0.0693006]
[1773569663469,0.06963784,71801.0,71788.0,0.06895177]
[1773569665378,0.06963784,71801.0,71788.0,0.06860302]
[1773569666329,0.06985785,71801.0,71788.0,0.06860302]
[1773569679907,0.06985785,71801.0,71788.0,0.06880302]
[1773569693250,0.10541745,71801.0,71788.0,0.06880302]
[1773569694685,0.06985785,71801.0,71788.0,0.06880302]
[1773569695029,0.03550278,71800.0,71788.0,0.06880302]
[1773569696218,0.06985785,71801.0,71788.0,0.06880302]
[1773569696414,0.03550278,71801.0,71789.0,0.0014]
[1773569697439,0.06963788,71800.0,71790.0,0.06964758]
[1773569697641,0.03256895,71799.0,71790.0,0.06964758]
[1773569697920,0.03256895,71799.0,71786.0,0.06965126]
[1773569698077,0.03256895,71799.0,71787.0,0.06965026]
[1773569698293,0.03256895,71799.0,71787.0,0.07105026]
[1773569699036,0.03256895,71799.0,71788.0,0.0014]
[1773569699378,0.03256895,71799.0,71787.0,0.06965026]
[1773569699580,0.03482584,71797.0,71789.0,0.0014]
[1773569700005,0.03482584,71797.0,71790.0,0.0014]
[1773569700413,0.03482584,71797.0,71777.0,0.20895723]
[1773569700613,0.03492039,71797.0,71778.0,0.0014]
[1773569700813,0.03492039,71797.0,71779.0,0.0014]
[1773569700814,0.03256895,71795.0,71779.0,0.0014]
[1773569701817,0.03256895,71793.0,71774.0,0.06966286]
[1773569702029,0.03256895,71793.0,71775.0,0.0014]
[1773569702454,0.03256895,71793.0,71776.0,0.0014]
[1773569707013,0.06964564,71792.0,71777.0,0.06966019]
[1773569707216,0.03540577,71791.0,71777.0,0.06966019]
[1773569707433,0.06973588,71797.0,71777.0,0.06966019]
[1773569707635,0.03540577,71796.0,71777.0,0.06966019]
[1773569707783,0.03540577,71796.0,71778.0,0.0014]
[1773569709033,0.03540577,71796.0,71777.0,0.06966019]
[1773569709183,0.03539296,71794.0,71779.0,0.07105804]
[1773569709602,0.03539296,71794.0,71780.0,0.0014]
[1773569710031,0.03539296,71794.0,71781.0,0.0014]
[1773569712348,0.03535366,71792.0,71781.0,0.0014]
[1773569713193,0.03535366,71792.0,71777.0,0.06966019]
[1773569713394,0.03535366,71792.0,71782.0,0.0014]
[1773569720343,0.03519928,71790.0,71782.0,0.0014]
[1773569722610,0.06964855,71789.0,71782.0,0.0014]
[1773569724291,0.04402768,71789.0,71782.0,0.0014]
[1773569725287,0.06964661,71791.0,71782.0,0.0014]
[1773569725462,0.06964661,71791.0,71782.0,0.00125083]
[1773569725665,0.06964661,71791.0,71782.0,0.00110166]
[1773569727038,0.06964661,71791.0,71783.0,0.0014]
[1773569727216,0.06964661,71791.0,71784.0,0.0014]
[1773569727416,0.06964661,71791.0,71785.0,0.0014]
[1773569727628,0.06964661,71791.0,71786.0,0.0014]
[1773569728744,0.0350354,71790.0,71782.0,0.0002]
[1773569728944,0.0350354,71790.0,71786.0,0.0014]
[1773569730700,0.06964855,71789.0,71786.0,0.0014]
[1773569731072,0.10548708,71789.0,71786.0,0.0014]
[1773569732744,0.10648708,71789.0,71786.0,0.0014]
[1773569734893,0.10548708,71789.0,71786.0,0.0014]
[1773569735095,0.10648708,71789.0,71786.0,0.0014]
[1773569735651,0.03574482,71788.0,71786.0,0.0014]
[1773569736215,0.07064855,71789.0,71786.0,0.0014]
[1773569736594,0.10639337,71789.0,71786.0,0.0014]
[1773569736894,0.10539337,71789.0,71786.0,0.0014]
[1773569737193,0.001,71788.0,71786.0,0.0014]
[1773569738076,0.10539337,71789.0,71786.0,0.0014]
[1773569738279,0.10639337,71789.0,71786.0,0.0014]
[1773569739027,0.10539337,71789.0,71786.0,0.00094609]
[1773569740206,0.10539337,71789.0,71785.0,0.0014]
[1773569740419,0.06965049,71787.0,71785.0,0.0014]
[1773569741442,0.06964661,71791.0,71785.0,0.0014]
[1773569741594,0.001,71787.0,71785.0,0.0014]
[1773569741795,0.06964661,71791.0,71785.0,0.0014]
[1773569744088,0.06986482,71793.0,71785.0,0.07105193]
[1773569744270,0.06986482,71793.0,71785.0,0.0014]
[1773569744474,0.06964467,71795.0,71785.0,0.07105166]
[1773569745264,0.06964467,71795.0,71785.0,0.0014]
[1773569745661,0.06964467,71795.0,71785.0,0.07105243]
[1773569746430,9.455e-05,71797.0,71785.0,0.07105243]
[1773569747710,9.455e-05,71797.0,71785.0,0.07125243]
[1773569747917,0.00022001,71795.0,71785.0,0.07125243]
[1773569748128,0.00022001,71795.0,71785.0,0.0016]
[1773569748272,0.0696437,71794.0,71785.0,0.0016]
[1773569749811,0.0354007,71793.0,71785.0,0.0016]
[1773569750361,0.0214007,71793.0,71785.0,0.0016]
[1773569750541,0.06964564,71792.0,71785.0,0.0016]
[1773569751502,0.06964562,71793.0,71786.0,0.06965146]
[1773569752508,0.0696437,71794.0,71786.0,0.06950228]
[1773569754626,0.0696437,71794.0,71785.0,0.0712519]
[1773569756337,0.06986371,71794.0,71785.0,0.0712519]
[1773569757833,0.06386371,71794.0,71785.0,0.0712519]
[1773569775775,0.09876672,71794.0,71785.0,0.0712519]
[1773569778577,0.03485975,71793.0,71785.0,0.0712519]
[1773569780806,0.06964564,71792.0,71785.0,0.0712519]
[1773569783745,0.0975049,71793.0,71785.0,0.0712519]
[1773569784047,0.0975049,71793.0,71785.0,0.07125234]
[1773569784197,0.0975049,71793.0,71785.0,0.0016]
[1773569784426,0.0975049,71793.0,71785.0,0.07125235]
[1773569784923,0.0975049,71793.0,71784.0,0.06965246]
[1773569784924,0.03472382,71792.0,71782.0,0.0002]
[1773569785096,0.03472382,71792.0,71786.0,0.0014]
[1773569785433,0.03472382,71792.0,71787.0,0.0014]
[1773569786214,0.03451894,71790.0,71787.0,0.0014]
[1773569786447,0.03451894,71790.0,71786.0,0.0014]
[1773569787620,0.03451894,71790.0,71776.0,0.06966116]
[1773569787822,0.03451894,71790.0,71777.0,0.0014]
[1773569788119,0.06964855,71789.0,71776.0,0.06966116]
[1773569788546,0.03467953,71788.0,71777.0,0.0014]
[1773569790959,0.06965049,71787.0,71775.0,0.06966213]
[1773569791165,0.06965049,71787.0,71774.0,0.06986116]
[1773569791166,0.03534357,71786.0,71776.0,0.0014]
[1773569792545,0.03534357,71786.0,71777.0,0.0002]
[1773569793215,0.06965243,71785.0,71777.0,0.0002]
[1773569793831,0.10495506,71785.0,71777.0,0.0002]
[1773569794233,0.10495506,71785.0,71778.0,0.0014]
[1773569796426,0.03526252,71784.0,71778.0,0.0014]
[1773569796866,0.03526252,71784.0,71779.0,0.0014]
[1773569797082,0.03526252,71784.0,71780.0,0.0014]
[1773569799079,0.03451894,71782.0,71780.0,0.0014]
[1773569800546,0.03551894,71782.0,71780.0,0.0014]
[1773569801682,0.06965631,71781.0,71780.0,0.0014]
[1773569803172,0.07065631,71781.0,71780.0,0.0014]
[1773569803496,0.06365631,71781.0,71780.0,0.0014]
[1773569803688,0.06265631,71781.0,71780.0,0.0014]
[1773569805400,0.10472683,71785.0,71780.0,0.0014]
[1773569805722,0.06987244,71785.0,71780.0,0.0014]
[1773569806280,0.10494684,71785.0,71780.0,0.0014]
[1773569808777,0.03501184,71784.0,71780.0,0.0014]
[1773569810180,0.03501184,71784.0,71778.0,0.0002]
[1773569810394,0.03501184,71784.0,71779.0,0.0014]
[1773569810901,0.03356539,71782.0,71780.0,0.0014]
[1773569811816,0.03356539,71782.0,71778.0,0.0002]
[1773569812022,0.03356539,71782.0,71780.0,0.0014]
[1773569812832,0.03356539,71782.0,71778.0,0.0002]
[1773569812990,0.06965631,71781.0,71780.0,0.0014]
[1773569813190,0.10430686,71781.0,71780.0,0.0014]
[1773569813876,0.10430686,71781.0,71777.0,0.0002]
[1773569814027,0.10430686,71781.0,71780.0,0.0014]
[1773569815110,0.10530686,71781.0,71780.0,0.0014]
[1773569815870,0.10430686,71781.0,71777.0,0.0002]
[1773569816073,0.10430686,71781.0,71780.0,0.0014]
[1773569816274,0.10030686,71781.0,71780.0,0.0014]
[1773569816652,0.06465631,71781.0,71780.0,0.0014]
[1773569816856,0.06465631,71781.0,71777.0,0.0002]
[1773569816857,0.09930686,71781.0,71777.0,0.0002]
[1773569817068,0.09930686,71781.0,71780.0,0.0014]
[1773569817631,0.09930686,71781.0,71779.0,0.0014]
[1773569819736,0.10454064,71783.0,71779.0,0.0014]
[1773569819942,0.06965437,71783.0,71779.0,0.0014]
[1773569820581,0.06965437,71783.0,71780.0,0.0002]